bitfinex-derivatives/quotes_SOLF0:USTF0_20240918
["timestamp","ask_amount","ask_price","bid_price","bid_amount"]
[1726639438033,4.736,131.02,131.01,9.39]
[1726639440432,3.8164,131.01,130.99,9.39]
[1726639443331,4.7361,131.02,130.99,9.39]
[1726639443530,4.7361,131.02,131.0,9.39]
[1726639443735,0.92,131.02,131.0,9.39]
[1726639444931,3.8163,131.01,131.0,9.39]
[1726639446332,3.8163,131.01,130.99,9.39]
[1726639446532,3.8166,131.0,130.99,9.39]
[1726639447039,10.31,131.02,130.98,9.39]
[1726639447632,3.8168,131.0,130.98,9.39]
[1726639448945,3.8168,130.99,130.98,9.39]
[1726639453843,3.8167,131.0,130.98,9.39]
[1726639455137,3.8168,130.99,130.98,9.39]
[1726639465863,9.39,131.01,130.95,1.4272]
[1726639466056,9.39,131.01,130.96,9.39]
[1726639466362,3.8176,130.97,130.96,9.39]
[1726639466562,9.39,130.99,130.95,9.39]
[1726639467567,9.39,130.97,130.93,9.39]
[1726639467857,3.8186,130.93,130.92,3.89100148]
[1726639468051,3.8186,130.93,130.91,9.39]
[1726639468256,3.8186,130.93,130.92,3.80577628]
[1726639468463,3.8186,130.93,130.92,13.19577628]
[1726639475158,3.8186,130.93,130.92,3.80577628]
[1726639475363,3.8186,130.93,130.91,9.39]
[1726639475570,3.8186,130.93,130.92,3.90547738]
[1726639476862,3.8186,130.93,130.89,3.8197]
[1726639477067,3.8186,130.93,130.89,7.6208938]
[1726639477268,3.8186,130.93,130.9,9.39]
[1726639481668,3.8186,130.93,130.91,9.39]
[1726639489373,3.8189,130.92,130.91,9.39]
[1726639490376,3.8189,130.92,130.9,9.39]
[1726639493077,1.4506,130.99,130.91,9.39]
[1726639493277,9.39,130.96,130.92,9.39]
[1726639494576,3.8185,130.94,130.92,9.39]
[1726639496877,3.8186,130.93,130.92,9.39]
[1726639497083,4.7386,130.93,130.92,9.39]
[1726639498574,4.7386,130.93,130.91,9.39]
[1726639499780,3.819,130.92,130.89,3.8011938]
[1726639499975,3.819,130.92,130.9,9.39]
[1726639500179,3.819,130.92,130.9,13.19233801]
[1726639501283,3.819,130.92,130.91,9.39]
[1726639502185,4.7387,130.93,130.91,9.39]
[1726639505381,4.7387,130.93,130.9,13.19233801]
[1726639505682,4.7387,130.93,130.9,9.39]
[1726639506184,4.7387,130.93,130.91,3.87827034]
[1726639509586,0.92,130.93,130.91,13.26827034]
[1726639509786,0.92,130.93,130.92,9.39]
[1726639512392,0.92,130.93,130.92,15.91408361]
[1726639514295,0.92,130.93,130.92,9.39]
[1726639514486,0.92,130.93,130.92,15.91396262]
[1726639514688,0.92,130.93,130.92,9.39]
[1726639514889,0.92,130.93,130.92,15.91378112]
[1726639515195,0.92,130.93,130.92,22.43762274]
[1726639515893,0.92,130.93,130.92,6.52384162]
[1726639516198,0.92,130.93,130.89,5.18990079]
[1726639516395,0.92,130.93,130.9,15.91465882]
[1726639516698,9.39,130.92,130.91,6.52465882]
[1726639516989,9.39,130.92,130.89,9.39]
[1726639516990,13.2089,130.92,130.89,9.39]
[1726639517388,13.2089,130.92,130.9,6.52639022]
[1726639517589,13.2089,130.92,130.89,9.39]
[1726639517789,13.2089,130.92,130.9,6.52652068]
[1726639517986,13.2089,130.92,130.88,5.36143498]
[1726639518190,9.39,130.91,130.87,10.8483]
[1726639518409,9.39,130.91,130.88,6.52722622]
[1726639518586,9.39,130.91,130.89,6.52680398]
[1726639518790,3.8195,130.9,130.87,10.8483]
[1726639519095,3.8195,130.9,130.88,6.52651616]
[1726639519289,3.8195,130.9,130.89,6.52651616]
[1726639519492,3.8195,130.9,130.87,14.62418889]
[1726639519690,3.8195,130.9,130.88,6.52691864]
[1726639519997,3.8195,130.9,130.87,13.16588889]
[1726639520193,3.8195,130.9,130.88,6.527215]
[1726639520496,3.8195,130.9,130.89,6.527215]
[1726639521287,3.8195,130.9,130.88,9.39]
[1726639521695,9.39,130.92,130.88,9.39]
[1726639521889,0.92,130.93,130.9,9.39]
[1726639522090,0.92,130.93,130.89,6.52565053]
[1726639522091,0.92,130.93,130.91,9.39]
[1726639524199,4.7386,130.93,130.91,9.39]
[1726639526400,0.92,130.93,130.91,9.39]
[1726639527107,0.92,130.93,130.92,6.5230374]
[1726639529005,0.92,130.93,130.92,15.9130374]
[1726639532400,0.92,130.93,130.92,15.91222056]
[1726639533598,0.92,130.93,130.92,19.73112056]
[1726639533903,0.92,130.93,130.92,26.8156782]
[1726639534097,3.8173,130.98,130.93,3.8184]
[1726639534412,10.8406,130.99,130.95,9.39]
[1726639534702,3.8175,130.97,130.95,9.39]
[1726639535705,3.8179,130.96,130.88,4.3861]
[1726639536008,3.8179,130.96,130.94,9.39]
[1726639543811,3.8179,130.96,130.95,9.39]
[1726639545017,3.8179,130.96,130.93,3.8186]
[1726639545212,3.8179,130.96,130.95,9.39]
[1726639552523,3.8173,130.98,130.95,13.208]
[1726639552712,3.8173,130.98,130.96,9.39]
[1726639552918,1.4506,130.99,130.96,9.39]
[1726639553125,12.2972,131.01,130.96,9.39]
[1726639553921,3.8172,130.98,130.96,9.39]
[1726639556034,3.8172,130.98,130.97,9.39]
[1726639562842,9.39,130.99,130.94,3.7699595]
[1726639563039,9.39,130.96,130.89,12.27133168]
[1726639563238,9.39,130.96,130.92,9.39]
[1726639563543,3.8177,130.96,130.93,6.4136764]
[1726639563743,9.39,130.97,130.92,9.39]
[1726639563944,3.8182,130.95,130.9,3.8194]
[1726639564243,9.39,130.96,130.91,15.80493471]
[1726639564446,9.39,130.95,130.92,6.41493471]
[1726639564642,9.39,130.95,130.9,3.8194]
[1726639564844,9.39,130.95,130.91,15.80494569]
[1726639565146,9.39,130.95,130.92,6.41494569]
[1726639565343,9.39,130.95,130.91,9.39]
[1726639565547,9.39,130.95,130.92,6.41495667]
[1726639565746,3.8184,130.94,130.91,9.39]
[1726639565949,3.8184,130.94,130.92,6.41486184]
[1726639566146,3.8184,130.94,130.91,9.39]
[1726639566345,3.8184,130.94,130.92,6.41486188]
[1726639566548,3.8184,130.94,130.91,9.39]
[1726639566753,3.8184,130.94,130.92,6.4149567]
[1726639567049,3.8184,130.94,130.91,9.39]
[1726639567238,3.8184,130.94,130.92,6.41498019]
[1726639567444,3.8184,130.94,130.91,9.39]
[1726639567652,3.8184,130.94,130.92,6.41498019]
[1726639567947,3.8184,130.94,130.91,9.39]
[1726639568150,3.8184,130.94,130.92,6.41489717]
[1726639568341,3.8184,130.94,130.91,9.39]
[1726639568745,3.8184,130.94,130.92,6.41516793]
[1726639568942,3.8184,130.94,130.91,9.39]
[1726639569141,3.8184,130.94,130.92,6.41530514]
[1726639569342,3.8184,130.94,130.91,9.39]
[1726639569540,3.8184,130.94,130.92,6.41524561]
[1726639569740,3.8184,130.94,130.91,9.39]
[1726639569940,3.8184,130.94,130.92,6.41520843]
[1726639570145,3.8184,130.94,130.91,9.39]
[1726639570340,3.8184,130.94,130.92,6.41526277]
[1726639570546,3.8184,130.94,130.91,9.39]
[1726639570749,3.8184,130.94,130.92,6.4152628]
[1726639570947,3.8184,130.94,130.91,9.39]
[1726639571152,3.8184,130.94,130.92,6.41516797]
[1726639571353,3.8184,130.94,130.91,9.39]
[1726639571552,3.8184,130.94,130.92,6.41516797]
[1726639571852,3.8184,130.94,130.91,9.39]
[1726639572054,3.8184,130.94,130.92,6.41510319]
[1726639572253,3.8184,130.94,130.91,9.39]
[1726639572453,3.8184,130.94,130.92,6.41510727]
[1726639572654,3.8184,130.94,130.91,9.39]
[1726639572863,3.8184,130.94,130.92,6.41495453]
[1726639573353,3.8184,130.94,130.91,9.39]
[1726639573548,3.8184,130.94,130.92,6.41531196]
[1726639573749,3.8184,130.94,130.91,9.39]
[1726639574053,3.8184,130.94,130.92,6.41535355]
[1726639574355,3.8184,130.94,130.91,9.39]
[1726639574551,3.8184,130.94,130.92,6.41559173]
[1726639574751,3.8184,130.94,130.91,9.39]
[1726639574955,3.8184,130.94,130.92,6.41559173]
[1726639575158,3.8184,130.94,130.91,9.39]
[1726639575347,3.8184,130.94,130.92,6.41525872]
[1726639575548,3.8184,130.94,130.91,9.39]
[1726639575753,3.8184,130.94,130.92,6.41525872]
[1726639575946,3.8184,130.94,130.91,9.39]
[1726639576145,3.8184,130.94,130.92,6.41525872]
[1726639576352,3.8184,130.94,130.91,9.39]
[1726639576651,3.8184,130.94,130.92,6.41525872]
[1726639576841,3.8184,130.94,130.91,9.39]
[1726639577046,3.8184,130.94,130.92,6.41525872]
[1726639577352,3.8184,130.94,130.92,9.39]
[1726639577650,3.8181,130.95,130.92,9.39]
[1726639577954,3.8181,130.95,130.93,9.39]
[1726639586054,3.8181,130.95,130.92,9.39]
[1726639586757,3.8181,130.95,130.93,6.41514881]
[1726639587057,3.8181,130.95,130.92,9.39]
[1726639587257,3.8181,130.95,130.93,6.41520834]
[1726639587450,3.8181,130.95,130.92,9.39]
[1726639587852,3.8181,130.95,130.93,6.41514881]
[1726639588052,3.8181,130.95,130.92,9.39]
[1726639588457,3.8181,130.95,130.93,6.41524364]
[1726639588656,3.8181,130.95,130.92,9.39]
[1726639588858,3.8181,130.95,130.93,6.41524364]
[1726639589160,3.8181,130.95,130.92,9.39]
[1726639589355,3.8181,130.95,130.93,6.41524364]
[1726639589556,3.8181,130.95,130.92,9.39]
[1726639589756,3.8181,130.95,130.93,6.41524364]
[1726639590057,3.8181,130.95,130.92,9.39]
[1726639590263,3.8181,130.95,130.93,6.41564083]
[1726639590454,3.8181,130.95,130.92,9.39]
[1726639590760,3.8183,130.94,130.93,6.41564083]
[1726639591156,3.8183,130.94,130.91,13.2091]
[1726639591355,3.8183,130.94,130.92,6.41679542]
[1726639591660,3.8183,130.94,130.93,6.41679542]
[1726639592452,3.8183,130.94,130.91,9.39]
[1726639592661,3.8186,130.93,130.92,6.41686536]
[1726639593763,3.8186,130.93,130.9,9.39]
[1726639594062,9.39,130.91,130.85,9.39]
[1726639594654,3.8199,130.89,130.85,9.39]
[1726639595051,9.39,130.91,130.85,9.39]
[1726639595660,3.8199,130.89,130.86,9.39]
[1726639596057,3.8199,130.89,130.87,9.39]
[1726639596256,3.8199,130.89,130.84,3.8212]
[1726639596459,3.8199,130.89,130.87,9.39]
[1726639597560,3.82,130.89,130.83,6.6765]
[1726639597765,3.82,130.89,130.85,9.39]
[1726639598556,3.8201,130.88,130.85,9.39]
[1726639600662,9.39,130.9,130.85,9.39]
[1726639600864,9.39,130.89,130.84,9.39]
[1726639601965,3.8204,130.87,130.84,9.39]
[1726639607171,9.39,130.87,130.83,2.8552]
[1726639607368,3.7703591,130.93,130.84,9.39]
[1726639607559,9.39,130.89,130.84,9.39]
[1726639609968,3.8205,130.87,130.84,9.39]
[1726639621282,3.8206,130.86,130.84,9.39]
[1726639622376,3.8205,130.87,130.84,9.39]
[1726639622572,3.8205,130.87,130.85,9.39]
[1726639622782,1.4577,130.91,130.85,9.39]
[1726639623085,3.8202,130.88,130.85,9.39]
[1726639623890,3.8205,130.87,130.85,9.39]
[1726639624388,1.4577,130.91,130.86,9.39]
[1726639624687,9.39,130.9,130.86,9.39]
[1726639625094,3.8201,130.88,130.86,9.39]
[1726639625690,1.4577,130.91,130.85,9.39]
[1726639625691,9.39,130.89,130.85,9.39]
[1726639625891,3.8205,130.87,130.85,9.39]
[1726639626095,9.39,130.89,130.85,9.39]
[1726639626888,3.8202,130.88,130.85,9.39]
[1726639629099,3.8202,130.88,130.84,3.8211]
[1726639629390,3.8202,130.88,130.85,9.39]
[1726639639201,3.8199,130.89,130.86,9.39]
[1726639639503,1.3953,130.96,130.88,9.39]
[1726639639699,3.8191,130.92,130.89,9.39]
[1726639641007,3.8188,130.93,130.89,13.2097]
[1726639641610,3.8189,130.92,130.89,13.2097]
[1726639643309,3.8187,130.93,130.89,13.2097]
[1726639643606,9.39,130.93,130.88,13.23174311]
[1726639643804,13.2093,130.91,130.88,9.39]
[1726639645197,9.39,130.93,130.89,9.39]
[1726639645398,9.39,130.94,130.89,9.39]
[1726639645800,3.8183,130.94,130.9,13.2094]
[1726639646002,3.8183,130.94,130.91,9.39]
[1726639646207,9.39,130.95,130.91,9.39]
[1726639646705,0.44,130.94,130.91,9.39]
[1726639647210,1.68,130.93,130.91,9.39]
[1726639647608,5.4987,130.93,130.91,9.39]
[1726639648713,1.68,130.93,130.91,13.2091]
[1726639649110,1.68,130.93,130.92,13.2089]
[1726639649309,0.44,130.94,130.92,9.39]
[1726639649609,0.44,130.94,130.93,13.2086]
[1726639649804,0.44,130.94,130.93,17.07409037]
[1726639651115,1.41,130.94,130.93,17.07409037]
[1726639652004,1.63,130.94,130.93,17.07409037]
[1726639655217,3.8173,130.98,130.94,3.8182]
[1726639655411,3.8173,130.98,130.96,9.39]
[1726639656317,3.817,130.99,130.96,9.39]
[1726639656616,10.8322,131.01,130.96,9.39]
[1726639656819,1.4422,131.01,130.97,9.39]
[1726639657120,12.3151,131.04,130.99,9.39]
[1726639657712,2.9251,131.04,131.01,9.39]
[1726639658012,12.3151,131.04,131.01,9.39]
[1726639658214,3.8157,131.03,131.01,9.39]
[1726639658419,12.3151,131.04,130.99,13.2068]
[1726639658621,12.3151,131.04,130.99,9.39]
[1726639659716,3.8162,131.02,130.99,9.39]
[1726639660608,3.8158,131.03,131.01,9.39]
[1726639660817,2.9251,131.04,131.01,9.39]
[1726639661721,12.3151,131.04,130.99,9.39]
[1726639662220,3.8159,131.03,130.99,9.39]
[1726639664020,3.8159,131.03,131.0,9.39]
[1726639664426,3.8155,131.04,131.0,9.39]
[1726639664725,3.8155,131.04,131.01,9.39]
[1726639667622,3.8157,131.03,131.01,9.39]
[1726639668226,3.8155,131.04,131.01,9.39]
[1726639668822,3.8158,131.03,130.99,3.8167]
[1726639669017,3.8158,131.03,131.0,9.39]
[1726639673328,3.8158,131.03,131.0,13.2065]
[1726639679124,3.8158,131.03,131.0,9.39]
[1726639685329,3.8158,131.03,131.01,9.39]
[1726639687636,3.8158,131.03,131.0,9.39]
[1726639688333,3.816,131.02,131.0,9.39]
[1726639688538,9.39,131.04,131.0,9.39]
[1726639688740,9.39,131.04,130.99,9.39]
[1726639688936,3.8164,131.01,130.99,9.39]
[1726639689246,9.39,131.04,130.99,9.39]
[1726639689838,3.8161,131.02,130.99,9.39]
[1726639690932,3.8161,131.02,131.0,9.39]
[1726639694945,9.39,131.04,130.99,9.39]
[1726639695536,3.8165,131.01,130.99,9.39]
[1726639697745,3.8169,130.99,130.95,6.7797]
[1726639697944,3.8169,130.99,130.96,9.39]
[1726639698141,3.8169,130.99,130.95,6.7797]
[1726639698346,3.8169,130.99,130.97,9.39]
[1726639703340,1.5154,131.02,130.97,9.39]
[1726639703554,9.39,131.0,130.97,9.39]
[1726639704044,3.8171,130.98,130.97,9.39]
[1726639704246,3.8171,130.98,130.96,9.39]
[1726639705246,3.817,130.99,130.97,9.39]
[1726639706957,3.8167,131.0,130.97,9.39]
[1726639707255,3.8167,131.0,130.98,9.39]
[1726639716656,3.8167,131.0,130.98,13.2071]
[1726639716853,3.8164,131.01,130.99,9.39]
[1726639717062,1.4311,131.05,131.0,9.39]
[1726639717366,10.8211,131.05,131.0,9.39]
[1726639717865,3.8159,131.03,131.01,9.39]
[1726639719468,3.816,131.02,131.0,9.39]
[1726639721170,3.8164,131.01,130.99,9.39]
[1726639722567,1.4311,131.05,130.95,2.8926]
[1726639722568,3.8167,131.0,130.96,3.8176]
[1726639722871,3.8167,131.0,130.97,9.39]
[1726639727170,3.8167,131.0,130.98,9.39]
[1726639727474,9.39,131.03,130.95,2.8926]
[1726639727475,3.8164,131.01,130.99,9.39]
[1726639728477,9.39,131.02,130.98,9.39]
[1726639729076,3.8167,131.0,130.98,9.39]
[1726639739182,1.4423,131.04,130.93,3.86549037]
[1726639739478,9.39,130.98,130.93,9.39]
[1726639739678,9.39,130.97,130.93,9.39]
[1726639739885,3.8182,130.95,130.93,9.39]
[1726639740386,3.8179,130.96,130.93,9.39]
[1726639743192,3.8172,130.98,130.95,9.39]
[1726639743385,3.8172,130.98,130.97,9.39]
[1726639744290,3.817,130.99,130.97,9.39]
[1726639744491,10.785,131.01,130.97,9.39]
[1726639744492,9.39,131.02,130.97,9.39]
[1726639744684,9.39,131.03,130.97,9.39]
[1726639745086,3.8165,131.01,130.99,9.39]
[1726639746390,3.816,131.02,131.0,9.39]
[1726639746688,16.6838,131.05,131.01,9.39]
[1726639746882,2.8151,131.1,131.01,9.39]
[1726639747083,9.39,131.07,131.01,9.39]
[1726639747280,9.39,131.07,131.03,9.39]
[1726639747886,3.8156,131.04,131.03,9.39]
[1726639748691,3.8157,131.03,131.02,9.39]
[1726639749686,3.8154,131.05,131.02,9.39]
[1726639750793,3.8154,131.04,131.02,9.39]
[1726639753283,3.8157,131.03,131.01,9.39]
[1726639753995,3.816,131.02,130.99,7.67564108]
[1726639754189,9.39,131.04,131.0,9.39]
[1726639754994,3.8162,131.02,131.0,9.39]
[1726639764498,3.8163,131.01,131.0,9.39]
[1726639769105,3.8161,131.02,131.0,9.39]
[1726639781402,3.8158,131.03,131.01,9.39]
[1726639789815,3.816,131.02,131.01,9.39]
[1726639790116,3.816,131.02,131.0,9.39]
[1726639791113,3.8164,131.01,130.99,9.39]
[1726639793510,3.8161,131.02,131.0,9.39]
[1726639794110,3.8158,131.03,131.0,9.39]
[1726639794319,3.8158,131.03,131.01,9.39]
[1726639795722,3.8155,131.04,131.02,9.39]
[1726639796733,3.8152,131.05,131.03,9.39]
[1726639796927,128.6269436,131.11,131.03,9.39]
[1726639796928,9.39,131.08,131.03,9.39]
[1726639797832,3.8151,131.05,131.03,9.39]
[1726639799530,3.8151,131.05,131.02,13.2058]
[1726639799825,3.8151,131.05,131.02,9.39]
[1726639800234,3.8155,131.04,131.02,9.39]
[1726639801737,3.8155,131.04,131.0,3.8163]
[1726639801936,3.8155,131.04,131.02,9.39]
[1726639807340,3.8157,131.03,131.0,9.39]
[1726639808143,3.8157,131.03,131.0,13.11796189]
[1726639809236,3.8157,131.03,131.0,3.72796189]
[1726639809433,3.8157,131.03,131.01,9.39]
[1726639811246,3.8155,131.04,131.01,9.39]
[1726639816757,3.8157,131.03,131.01,9.39]
[1726639823557,10.7999,131.06,131.0,3.72796189]
[1726639823558,9.39,131.05,131.0,3.72796189]
[1726639823755,9.39,131.05,131.01,9.39]
[1726639824553,3.8154,131.04,131.01,9.39]
[1726639826648,3.8153,131.05,131.03,9.39]
[1726639827456,3.8153,131.05,131.01,3.8162]
[1726639827457,3.8154,131.04,131.01,13.2062]
[1726639828059,3.8154,131.04,131.0,3.78903565]
[1726639828060,3.8157,131.03,131.0,7.60543565]
[1726639828247,9.39,131.04,130.98,2.886]
[1726639828450,3.8167,131.0,130.98,9.39]
[1726639829054,4.3505,131.06,130.98,9.39]
[1726639829248,3.8164,131.01,130.98,9.39]
[1726639833460,3.8166,131.0,130.97,9.39]
[1726639834361,3.8164,131.01,130.97,13.2074]
[1726639836461,3.8164,131.01,130.98,9.39]
[1726639837358,3.8164,131.01,130.97,3.8174]
[1726639837559,3.8164,131.01,130.98,9.39]
[1726639838453,3.8167,131.0,130.96,3.8175]
[1726639838655,3.8167,131.0,130.97,9.39]
[1726639841160,3.8167,131.0,130.95,3.818]
[1726639841161,3.8169,130.99,130.95,3.818]
[1726639841361,9.39,131.0,130.93,4.5137]
[1726639841567,4.3505,131.06,130.93,2.9942]
[1726639841568,9.39,130.98,130.93,2.9942]
[1726639841769,9.39,130.97,130.86,1.5247]
[1726639841964,9.39,130.97,130.92,9.39]
[1726639842163,3.8181,130.95,130.92,9.39]
[1726639842665,3.8181,130.95,130.91,3.819]
[1726639842866,3.8183,130.94,130.9,9.39]
[1726639843074,3.8183,130.94,130.9,13.22795553]
[1726639843372,3.8183,130.94,130.9,17.04735553]
[1726639843569,3.8187,130.93,130.86,4.4938]
[1726639843771,3.8187,130.93,130.9,9.39]
[1726639844566,3.8184,130.94,130.9,9.39]
[1726639849077,3.8184,130.94,130.9,13.2095]
[1726639850677,3.8186,130.93,130.9,13.2095]
[1726639852974,3.8184,130.94,130.91,9.39]
[1726639853174,9.39,130.95,130.91,9.39]
[1726639853369,3.8186,130.94,130.91,9.39]
[1726639854481,3.8186,130.93,130.91,9.39]
[1726639854677,9.39,130.95,130.91,9.39]
[1726639854876,9.39,130.95,130.91,13.2092]
[1726639855983,3.8185,130.94,130.91,13.2092]
[1726639859087,3.8185,130.94,130.91,9.39]
[1726639860880,3.8185,130.94,130.91,13.2092]
[1726639862186,13.2081,130.95,130.91,13.2092]
[1726639862988,13.2081,130.95,130.92,9.39]
[1726639863782,3.8181,130.95,130.92,13.2088]
[1726639864491,3.8178,130.96,130.93,13.2085]
[1726639865189,3.8176,130.97,130.94,13.2083]
[1726639866282,13.914,130.99,130.94,13.2083]
[1726639866482,15.28,131.02,130.95,9.39]
[1726639866680,9.39,131.0,130.95,9.39]
[1726639867185,3.8172,130.98,130.95,13.2078]
[1726639871182,2.8814,131.03,130.93,8.2859906]
[1726639871389,9.39,131.0,130.96,9.39]
[1726639871580,2.8814,131.03,130.96,9.39]
[1726639871781,2.8814,131.03,130.97,13.2073]
[1726639871988,9.39,131.01,130.97,13.2073]
[1726639872587,3.8166,131.0,130.97,13.2073]
[1726639874395,13.2065,131.01,130.97,13.2073]
[1726639874596,13.2065,131.01,130.98,3.8171]
[1726639876694,3.8165,131.01,130.98,13.2071]
[1726639877088,3.8161,131.02,130.98,13.2071]
[1726639877287,3.8161,131.02,130.98,3.8171]
[1726639877485,3.8161,131.02,130.99,13.2068]
[1726639877685,3.8158,131.03,130.99,13.2068]
[1726639878889,3.8158,131.03,131.0,13.2065]
[1726639879100,3.8156,131.04,131.01,9.39]
[1726639879800,3.8156,131.04,131.01,13.2061]
[1726639881086,9.39,131.04,130.93,8.2859906]
[1726639881292,9.39,131.03,130.98,9.39]
[1726639882392,3.8162,131.02,130.98,13.207]
[1726639884392,3.8162,131.02,130.99,13.2068]
[1726639885397,3.8162,131.02,130.99,9.39]
[1726639887200,3.8162,131.02,130.99,13.2067]
[1726639887504,9.39,131.03,130.99,13.2067]
[1726639888895,3.816,131.02,130.99,13.2067]
[1726639889298,9.39,131.03,130.99,13.2067]
[1726639889299,13.2058,131.03,130.99,13.2067]
[1726639890098,3.8155,131.04,131.01,9.39]
[1726639890301,9.39,131.06,131.01,9.39]
[1726639890602,3.8153,131.05,131.01,13.2061]
[1726639891098,9.39,131.06,131.01,13.2061]
[1726639893805,3.8154,131.04,131.01,13.2061]
[1726639897011,9.39,131.06,131.01,9.39]
[1726639897914,3.8155,131.04,131.01,9.39]
[1726639898509,3.8155,131.04,131.01,13.2062]
[1726639902717,3.8155,131.04,131.01,9.39]
[1726639905720,3.8155,131.04,131.01,13.2063]
[1726639907718,3.8155,131.04,131.02,9.39]
[1726639910825,3.8155,131.04,131.01,3.8163]
[1726639911127,3.8155,131.04,131.01,13.2063]
[1726639913326,3.8155,131.04,131.01,9.39]
[1726639914531,3.8155,131.04,131.01,13.2062]
[1726639915127,3.8155,131.04,131.01,9.39]
[1726639918133,3.8155,131.04,131.01,13.2063]
[1726639928944,3.8163,131.01,130.94,5.18879193]
[1726639929250,9.39,131.0,130.94,5.18879193]
[1726639929645,9.39,131.0,130.95,9.39]
[1726639930351,9.39,130.99,130.95,9.39]
[1726639931245,3.8173,130.98,130.95,9.39]
[1726639937546,3.8173,130.98,130.95,13.208]
[1726639939245,3.8169,130.99,130.95,13.208]
[1726639939456,3.8169,130.99,130.96,9.39]
[1726639941554,1.4132,131.05,130.98,9.39]
[1726639941750,9.39,131.03,130.98,9.39]
[1726639942156,3.816,131.02,130.98,9.39]
[1726639943762,3.816,131.02,130.99,3.8167]
[1726639946667,3.816,131.02,130.99,13.2067]
[1726639947757,3.8163,131.01,130.98,13.207]
[1726639948868,3.816,131.02,130.99,3.8167]
[1726639949071,9.39,131.03,130.98,9.39]
[1726639950758,3.8163,131.01,130.98,13.207]
[1726639960172,3.8161,131.02,131.0,9.39]
[1726639963277,3.8163,131.01,130.98,3.8171]
[1726639963480,3.8163,131.01,130.98,13.2071]
[1726639963881,3.8166,131.0,130.98,13.2071]
[1726639964083,9.39,131.02,130.98,13.2071]
[1726639965581,3.8164,131.01,130.98,13.2071]
[1726639973282,3.8167,131.0,130.97,13.2073]
[1726639973478,9.39,131.0,130.93,8.2859906]
[1726639973683,9.39,131.0,130.95,9.39]
[1726639973883,3.8171,130.99,130.95,13.2078]
[1726639974490,3.8169,130.99,130.96,9.39]
[1726639983489,9.39,131.0,130.96,13.2076]
[1726639983490,3.8166,131.0,130.96,13.2076]
[1726639983696,9.39,131.01,130.96,13.2076]
[1726639983891,9.39,131.01,130.96,9.39]
[1726639984093,3.817,130.99,130.96,9.39]
[1726639986100,3.817,130.99,130.96,13.2076]
[1726639999604,3.817,130.99,130.96,9.39]
[1726640000303,3.817,130.99,130.96,13.2076]
[1726640002102,9.39,131.02,130.98,9.39]
[1726640002603,3.8164,131.01,130.98,13.2071]
[1726640003000,9.39,131.02,130.98,9.39]
[1726640003201,13.2062,131.02,130.99,9.39]
[1726640004500,3.8162,131.02,130.99,13.2068]
[1726640007001,3.8162,131.02,130.99,3.8168]